Cogmind - Beta 9.6 @@@ ROGUE MODE // 2020.09.02 @ 21:59:53 Player: Henry Result: Destroyed by Y-54 Guardian with Flak Gun Performance ------------- Evolutions (3) 1500 Regions Visited (8) 1600 Robots Destroyed (61) 305 Value Destroyed (1900) 1900 Prototype IDs (10) 200 Alien Tech Used (0) 0 Bonus (466) 466 TOTAL SCORE: 5971 Bonus ------- High Alert Combat Kills 72 Follower Combat Kills 184 Met Data Miner 300 Friendly Fire -90 Cogmind --------- Core Integrity 0/700 Matter 274/300 Energy 98/100 System Corruption 2% Temperature Cool (18) Movement Core (50) Location -6/Proximity Caves Parts ------- > --- POWER (1) -------- (None) > --- PROPULSION (4) --- (None) > --- UTILITY (4) ------ (None) > --- WEAPON (4) ------- (None) > --- INVENTORY (4) ---- Advanced Terrain Scanner Improved Terrain Scan Processor Proton Missile Launcher Great Maul Peak State ------------ > --- POWER ------------ Light Nuclear Core > --- PROPULSION ------- Light Treads Improved Carbon-fiber Leg Flexi-carbon Leg Armored Wheel > --- UTILITY ---------- Large Storage Unit Large Storage Unit Improved Weapon Shielding Hardened Medium Armor Plating > --- WEAPON ----------- Minigun High-powered Shotgun Flak Cannon Flak Cannon > --- INVENTORY -------- Improved Ion Engine Improved Ion Engine Light Nuclear Core Gravmag System Advanced Terrain Scanner Improved Terrain Scan Processor ECM Suite Utility Shielding Utility Shielding Utility Shielding Improved Weapon Shielding Hardened Heavy Armor Plating Heavy Laser Heavy Hammer Mining Claw [Rating: 38] Favorites ----------- Power Light Nuclear Core Engine Improved Ion Engine Power Core Light Nuclear Core Propulsion Armored Wheel Treads Light Treads Leg Aluminum Leg Wheel Armored Wheel Hover Unit Gravmag System Utility Large Storage Unit Device Improved Heat Sink Storage Large Storage Unit Processor Signal Interpreter Protection Improved Weapon Shielding Weapon Flak Cannon Energy Gun Small Laser Energy Cannon Particle Cannon Ballistic Gun High-powered Shotgun Ballistic Cannon Flak Cannon Impact Weapon Heavy Hammer Slashing Weapon Mining Claw Build | -11 -10 -9 -8 -7 -7 -7 -7 -6 ------- Run | Scr Mat Mat Mat Fac Low Low Dat Pro Slots Evolved 6 | . . 2 2 2 . . . . Power . | . . . . . . . . . Propulsion 2 | . . . . 2 . . . . Utility 2 | . . . 2 . . . . . Weapon 2 | . . 2 . . . . . . Parts Attached 51 | 6 5 10 13 4 5 6 . 2 Power 5 | 1 1 . 2 . . 1 . . Engine 3 | 1 1 . 1 . . . . . Core 2 | . . . 1 . . 1 . . Reactor . | . . . . . . . . . Propulsion 16 | 2 1 2 1 2 3 3 . 2 Treads 7 | 1 . 1 1 1 1 1 . 1 Leg 4 | . . . . . 2 1 . 1 Wheel 4 | 1 1 1 . 1 . . . . Hover 1 | . . . . . . 1 . . Flight . | . . . . . . . . . Utility 9 | 1 2 . 3 2 . 1 . . Device 2 | . . . 2 . . . . . Storage 3 | 1 2 . . . . . . . Processor 1 | . . . 1 . . . . . Hackware . | . . . . . . . . . Protection 3 | . . . . 2 . 1 . . Artifact . | . . . . . . . . . Weapon 21 | 2 1 8 7 . 2 1 . . Energy Gun 3 | 1 . 1 1 . . . . . Energy Cannon 2 | . 1 1 . . . . . . Ballistic Gun 5 | 1 . 1 3 . . . . . Ballistic Cannon 8 | . . 4 3 . . 1 . . Launcher . | . . . . . . . . . Special Weapon . | . . . . . . . . . Impact Weapon 1 | . . . . . 1 . . . Slashing Weapon 2 | . . 1 . . 1 . . . Piercing Weapon . | . . . . . . . . . Special Melee Weapon . | . . . . . . . . . Unidentified Prototypes . | . . . . . . . . . Parts Lost 27 | . . 1 5 . 3 7 . 11 Power 2 | . . . . . . 1 . 1 Propulsion 12 | . . 1 . . 3 3 . 5 Utility 4 | . . . 1 . . 2 . 1 Weapon 9 | . . . 4 . . 1 . 4 Highest Loss Streak 7 | . . 1 2 . 3 3 . 7 Average Slot Usage (%) 91 | . 98 99 97 99 90 91 92 76 Engine 3 | . 13 11 7 . . . . . Core 4 | . . . 1 7 7 6 7 5 Treads 8 | . 14 11 9 15 6 7 7 6 Leg 3 | . . . . . 4 8 7 6 Wheel 8 | . 13 10 9 15 9 7 7 6 Hover 1 | . . . . . . 2 7 5 Device 1 | . . . 8 . . . . . Storage 16 | . 27 22 18 15 15 15 15 13 Processor 1 | . . . 9 . . . . . Protection 6 | . . . . 14 15 10 7 3 Energy Gun 1 | . 4 5 2 . . . . . Ballistic Gun 12 | . 14 11 7 15 15 15 15 12 Ballistic Cannon 10 | . . 21 16 15 12 7 7 6 Slashing Weapon 4 | . . 5 8 . 1 7 7 6 Naked Turns 90 | . . . . . . . . 90 Heaviest Build 65 | 9 44 56 57 65 65 61 53 53 Greatest Support 38 | 20 12 20 12 24 38 38 10 15 Greatest Overweight (x) 12 | . 12 4 4 2 5 5 5 5 Average Overweight (x) 3 | . 2 3 3 2 3 2 5 2 Largest Inventory Capacity 16 | 6 16 16 16 16 16 16 16 16 Average Capacity 15 | 5 15 16 16 16 16 16 16 14 Most Carried 16 | 6 16 16 16 16 16 16 16 16 Average Carried 14 | 3 13 15 15 13 15 15 16 14 Final Capacity 16 | 6 16 16 16 16 16 16 16 4 Final Carried 16 | 6 16 15 16 16 16 16 16 4 Class Distribution -------------------- 55% | Tank 18% | Gunner 16% | Mutant 5% | Scavenger-Skirmisher 3% | Scavenger-Gunner Dominant Class ---------------- Mutant | -10/Materials Gunner | -9/Materials Scavenger-Skirmisher | -8/Materials Tank | -7/Factory Tank | -7/Lower Caves Tank | -7/Lower Caves Tank | -7/Data Miner Tank | -6/Proximity Caves Resources | -11 -10 -9 -8 -7 -7 -7 -7 -6 ----------- Run | Scr Mat Mat Mat Fac Low Low Dat Pro Matter Collected 2123 | 260 66 443 724 . 352 259 . 19 Remotely . | . . . . . . . . . Salvage Created 1997 | 92 101 629 620 . 362 139 . 54 Parts 115 | 5 4 43 47 . 11 5 . . Haulers Intercepted . | . . . . . . . . . Recyclers Shooed 3 | 1 . 1 1 . . . . . Parts Field Recycled . | . . . . . . . . . Retrieved Matter . | . . . . . . . . . Parts Self-Destructed 27 | . . . . . 8 7 . 12 Prevented . | . . . . . . . . . Kills | -11 -10 -9 -8 -7 -7 -7 -7 -6 ------- Run | Scr Mat Mat Mat Fac Low Low Dat Pro Combat Hostiles Destroyed 47 | . 2 13 21 . 6 4 . 1 Guns 15 | . 2 3 5 . 3 2 . . Cannons 31 | . . 10 15 . 3 2 . 1 AOE 1 | . . . 1 . . . . . Classes Destroyed 12 | 2 2 5 2 . 1 . . . Worker 1 | . . 1 . . . . . . Builder 2 | . . 2 . . . . . . Tunneler 2 | 2 . . . . . . . . Recycler 4 | 1 . 2 1 . . . . . Operator 2 | . 1 . 1 . . . . . Watcher 3 | . . 1 2 . . . . . Swarmer 13 | . . 4 8 . . 1 . . Grunt 19 | . 2 5 6 . 4 2 . . Brawler 2 | . . . 1 . . . . 1 Sentry 10 | . . 4 5 . . 1 . . Hunter 1 | . . . 1 . . . . . Programmer 2 | . . . . . 2 . . . Best Kill Streak 14 | 3 2 14 11 . 3 2 . 1 Combat Bots Only 10 | . 1 6 10 . 3 2 . 1 Max Kills in Single Turn 2 | 1 1 2 2 . 1 1 . 1 Gunslinging . | . . . . . . . . . Exploded 1 | . . . 1 . . . . . Melee . | . . . . . . . . . Uniques/NPCs Destroyed . | . . . . . . . . . Combat | -11 -10 -9 -8 -7 -7 -7 -7 -6 -------- Run | Scr Mat Mat Mat Fac Low Low Dat Pro Damage Taken 4506 | . 198 457 988 . 596 858 . 1409 Core 935 | . 24 66 142 . 45 102 . 556 Absorbed by Shields . | . . . . . . . . . Core Remaining (%) 86 | 100 90 83 74 . . . . . Volleys Fired 133 | 9 16 24 48 . 18 12 . 6 Largest 4 | 1 2 4 3 . 4 3 . 3 Hottest 153 | 40 60 151 153 . 138 94 . 94 Shots Fired 364 | 9 31 78 129 . 65 35 . 17 Gun 186 | 9 31 30 47 . 34 24 . 11 Cannon 178 | . . 48 82 . 31 11 . 6 Launcher . | . . . . . . . . . Special . | . . . . . . . . . Kinetic 324 | . 16 72 119 . 65 35 . 17 Thermal 34 | 9 15 . 10 . . . . . Explosive . | . . . . . . . . . Electromagnetic 6 | . . 6 . . . . . . Robot Hit Streak 13 | 6 13 8 9 . 6 6 . 5 Robot Miss Streak 10 | 1 2 8 10 . 8 6 . 2 Penetration Max . | . . . . . . . . . Secondary Targets . | . . . . . . . . . Shots Hit Robots 271 | 7 25 54 91 . 51 28 . 15 Core Hits 176 | 4 6 42 73 . 26 12 . 13 Critical Hits 1 | . . . . . . 1 . . Critical Kills . | . . . . . . . . . Critical Parts Destroyed 1 | . . . . . . 1 . . Melee Attacks 3 | . . . . . 3 . . . Impact . | . . . . . . . . . Slashing 3 | . . . . . 3 . . . Piercing . | . . . . . . . . . Sneak Attacks . | . . . . . . . . . Combat Hostiles . | . . . . . . . . . Follow-up Attacks . | . . . . . . . . . Damage Inflicted 4509 | 92 227 785 1666 . 908 502 . 329 Guns 2094 | 92 227 289 497 . 401 384 . 204 Cannons 1971 | . . 496 938 . 294 118 . 125 Explosions 231 | . . . 231 . . . . . Melee 210 | . . . . . 210 . . . Ramming 3 | . . . . . 3 . . . Kinetic 3670 | . 106 724 1314 . 695 502 . 329 Thermal 334 | 92 121 . 121 . . . . . Explosive 231 | . . . 231 . . . . . Electromagnetic 61 | . . 61 . . . . . . Impact . | . . . . . . . . . Slashing 210 | . . . . . 210 . . . Piercing . | . . . . . . . . . Highest Corruption 2 | . . . . . 2 2 2 2 Average Corruption 1 | . . . . . 1 2 2 2 Corruption Purged . | . . . . . . . . . Effects 17 | . . . . . 4 5 1 7 Message Errors 8 | . . . . . 2 2 1 3 Heat Flow Errors 1 | . . . . . 1 . . . Energy Discharges 4 | . . . . . . 2 . 2 Data Loss (minor) 3 | . . . . . 1 1 . 1 Weapon Failures 1 | . . . . . . . . 1 Overload Shots . | . . . . . . . . . Overflow Damage 87 | . . . 20 . 67 . . . Projectiles 4 | . . . . . 4 . . . Explosions 20 | . . . 20 . . . . . Melee 63 | . . . . . 63 . . . Knockbacks 44 | . . 6 27 . 8 2 . 1 Impact . | . . . . . . . . . Kinetic 39 | . . 6 22 . 8 2 . 1 Secondary 5 | . . . 5 . . . . . Self-Inflicted Damage 26 | . . 25 . . 1 . . . Shots 1 | . . 1 . . . . . . Rammed 1 | . . . . . 1 . . . Targets Rammed 1 | . . . . . 1 . . . Kicked . | . . . . . . . . . Crushed . | . . . . . . . . . Highest Temperature 412 | . 164 254 240 . 412 158 . 63 Average Temperature 99 | . 78 94 77 . 172 60 . 27 Received Heat Transfer 1584 | . 108 147 288 . 243 330 . 468 Effects 3 | . . . . . 3 . . . Shutdowns 2 | . . . . . 2 . . . Interference 1 | . . . . . 1 . . . Siege Activations . | . . . . . . . . . Robots Corrupted . | . . . . . . . . . Combat Hostiles . | . . . . . . . . . Parts Fried . | . . . . . . . . . Impact Corruptions . | . . . . . . . . . Robots Melted . | . . . . . . . . . Combat Hostiles . | . . . . . . . . . Parts Melted 2 | . . . 2 . . . . . Heat Transferred 771 | 200 275 . 296 . . . . . Parts Sabotaged . | . . . . . . . . . Parts Stolen . | . . . . . . . . . Parts Stripped . | . . . . . . . . . Power Chain Reactions 1 | . . 1 . . . . . . Missiles Intercepted . | . . . . . . . . . Alert | -11 -10 -9 -8 -7 -7 -7 -7 -6 ------- Run | Scr Mat Mat Mat Fac Low Low Dat Pro Peak Influence 501 | 15 79 447 501 179 . . . . Average Influence 191 | 7 17 139 392 164 . . . . Maximum Alert Level 2 | . . 2 2 . . . . . Low Security (%) 60 | 100 100 73 1 100 . . . . Level 1 20 | . . 18 46 . . . . . Level 2 19 | . . 7 51 . . . . . Level 3 . | . . . . . . . . . Level 4 . | . . . . . . . . . Level 5 . | . . . . . . . . . High Security . | . . . . . . . . . Max Security . | . . . . . . . . . Squads Dispatched 4 | . 1 1 1 . . . . 1 Investigation . | . . . . . . . . . Extermination . | . . . . . . . . . Reinforcement 3 | . 1 1 1 . . . . . Assault 1 | . . . . . . . . 1 Garrison . | . . . . . . . . . Intercept . | . . . . . . . . . Construction Impeded . | . . . . . . . . . Haulers Reinforced . | . . . . . . . . . Stealth | -11 -10 -9 -8 -7 -7 -7 -7 -6 --------- Run | Scr Mat Mat Mat Fac Low Low Dat Pro Distress Signals 4 | . . 1 3 . . . . . Communications Jammed . | . . . . . . . . . Distress Signals . | . . . . . . . . . Times Spotted 99 | . 4 17 28 . 11 10 . 29 Peak Tracking Total 17 | . 2 5 6 . 5 5 . 17 Tactical Retreats 10 | . . 1 . . . 3 . 6 Traps | -11 -10 -9 -8 -7 -7 -7 -7 -6 ------- Run | Scr Mat Mat Mat Fac Low Low Dat Pro Traps Triggered 3 | . . 2 1 . . . . . Indirectly 1 | . . 1 . . . . . . Trap Hack Attempts . | . . . . . . . . . Triggered . | . . . . . . . . . Disarmed . | . . . . . . . . . Reprogrammed . | . . . . . . . . . Reused . | . . . . . . . . . Traps Extracted . | . . . . . . . . . Installed . | . . . . . . . . . Triggered . | . . . . . . . . . Machines | -11 -10 -9 -8 -7 -7 -7 -7 -6 ---------- Run | Scr Mat Mat Mat Fac Low Low Dat Pro Machines Disabled 7 | . . 3 4 . . . . . Max in Single Turn 2 | . . 2 1 . . . . . Machines Sabotaged . | . . . . . . . . . Garrisons Compromised . | . . . . . . . . . Overloaded Fab Kills . | . . . . . . . . . Fab Network Shutdowns . | . . . . . . . . . Hacking | -11 -10 -9 -8 -7 -7 -7 -7 -6 --------- Run | Scr Mat Mat Mat Fac Low Low Dat Pro Machines Accessed 15 | . 3 1 5 2 . . 4 . Terminals 11 | . 3 1 5 2 . . . . Fabricators . | . . . . . . . . . Repair Stations . | . . . . . . . . . Recycling Units . | . . . . . . . . . Scanalyzers . | . . . . . . . . . Garrison Access . | . . . . . . . . . Total Hacks 59 | . 9 2 16 4 . . 28 . Successful 42 | . 4 1 7 2 . . 28 . Failed 17 | . 5 1 9 2 . . . . Catastrophic 3 | . 1 . 1 1 . . . . Database Lockouts . | . . . . . . . . . Manual 31 | . 9 2 16 4 . . . . Terminals 31 | . 9 2 16 4 . . . . Fabricators . | . . . . . . . . . Repair Stations . | . . . . . . . . . Recycling Units . | . . . . . . . . . Scanalyzers . | . . . . . . . . . Garrison Access . | . . . . . . . . . Terminal Hacks 32 | . 1 . 3 . . . 28 . Record 11 | . . . . . . . 11 . Part Schematic 8 | . . . . . . . 8 . Robot Schematic 6 | . . . . . . . 6 . Prototype ID Bank 3 | . . . . . . . 3 . Level Access Points 1 | . . . 1 . . . . . Unreport Threat 3 | . 1 . 2 . . . . . Fabricator Hacks . | . . . . . . . . . Repair Station Hacks . | . . . . . . . . . Recycling Unit Hacks . | . . . . . . . . . Scanalyzer . | . . . . . . . . . Garrison Access Hacks . | . . . . . . . . . Unauthorized Hacks 10 | . 3 1 4 2 . . . . Terminals 10 | . 3 1 4 2 . . . . Botnet 10 | . 3 1 4 2 . . . . Fabricators . | . . . . . . . . . Repair Stations . | . . . . . . . . . Recycling Units . | . . . . . . . . . Scanalyzers . | . . . . . . . . . Garrison Access . | . . . . . . . . . Data Cores Recovered 1 | . . . 1 . . . . . Used . | . . . . . . . . . Hacking Detections 11 | . 3 1 5 2 . . . . Full Trace Events . | . . . . . . . . . Feedback Events . | . . . . . . . . . Feedback Blocked . | . . . . . . . . . Robot Schematics Acquired 6 | . . . . . . . 6 . Robots Built . | . . . . . . . . . Matter . | . . . . . . . . . Time . | . . . . . . . . . Total Robot Build Rating . | . . . . . . . . . Part Schematics Acquired 8 | . . . . . . . 8 . Parts Built . | . . . . . . . . . Matter . | . . . . . . . . . Time . | . . . . . . . . . Total Part Build Rating . | . . . . . . . . . Parts Repaired . | . . . . . . . . . Time . | . . . . . . . . . Parts Recycled . | . . . . . . . . . Recycled Matter . | . . . . . . . . . Retrieved Matter . | . . . . . . . . . Retrieved Components . | . . . . . . . . . Parts Scanalyzed . | . . . . . . . . . Part Schematics Acquired . | . . . . . . . . . Parts Damaged . | . . . . . . . . . Bothacking | -11 -10 -9 -8 -7 -7 -7 -7 -6 ------------ Run | Scr Mat Mat Mat Fac Low Low Dat Pro Used RIF Installer . | . . . . . . . . . Robots Hacked . | . . . . . . . . . Non-combat . | . . . . . . . . . Combat . | . . . . . . . . . Robot Hacks Applied . | . . . . . . . . . Relay Couplers Released . | . . . . . . . . . Robots Rewired . | . . . . . . . . . Allies Hacked . | . . . . . . . . . Hacks Repelled . | . . . . . . . . . Allies | -11 -10 -9 -8 -7 -7 -7 -7 -6 -------- Run | Scr Mat Mat Mat Fac Low Low Dat Pro Total Allies 1 | . . . . . . . . 1 Largest Group 1 | . . . . . . . . 1 Highest-Rated Group 94 | . . . . . . . . 94 Highest-Rated Ally 94 | . . . . . . . . 94 Total Orders . | . . . . . . . . . Ally Attacks 15 | . . . . . . . . 15 Total Damage 426 | . . . . . . . . 426 Kills 5 | . . . . . . . . 5 Allies Corrupted . | . . . . . . . . . Allies Melted . | . . . . . . . . . Intel | -11 -10 -9 -8 -7 -7 -7 -7 -6 ------- Run | Scr Mat Mat Mat Fac Low Low Dat Pro Robot Analysis Total . | . . . . . . . . . Derelict Logs Recovered 3 | . . . . . 1 1 . 1 Drone Launches . | . . . . . . . . . Drone Recoveries . | . . . . . . . . . Exploration | -11 -10 -9 -8 -7 -7 -7 -7 -6 ------------- Run | Scr Mat Mat Mat Fac Low Low Dat Pro Turns Passed 4063 | 141 343 392 560 217 743 655 241 771 Spaces Moved 2432 | 71 228 218 288 190 488 351 90 508 Core 183 | 1 1 . . . . . . 181 Treads 73 | 66 . 4 . . 3 . . . Legs 622 | . . . . . 122 240 90 170 Wheels 1554 | 4 227 214 288 190 363 111 . 157 Hover . | . . . . . . . . . Flight . | . . . . . . . . . Fastest Speed 50 | 50 80 120 120 110 110 120 270 50 Average Speed 143 | 153 119 131 129 110 135 170 270 145 Slowest Speed 650 | 160 650 200 130 110 220 270 270 270 Overloaded Moves . | . . . . . . . . . Propulsion Burnouts . | . . . . . . . . . Robots Hopped . | . . . . . . . . . Cave-ins Triggered . | . . . . . . . . . Exploration Rate (%) 40 | 4 44 23 35 5 67 53 72 64 Regions Visited 8 Branch Regions 4 Pre-discovered Areas 1 | . . . . . . . 1 . Known Exits Taken 1 | . . . 1 . . . . . Unknown Exits Taken 7 | 1 1 1 . 1 1 1 1 . Scrap Searched 7 | . . . . . 2 4 . 1 Spaces Dug . | . . . . . . . . . Terrain Destroyed 25 | . . 9 16 . . . . . Melee . | . . . . . . . . . Projectile . | . . . . . . . . . AOE 25 | . . 9 16 . . . . . Actions | -11 -10 -9 -8 -7 -7 -7 -7 -6 --------- Run | Scr Mat Mat Mat Fac Low Low Dat Pro Total 2734 | 91 274 271 374 199 520 382 89 534 Wait 35 | . 2 5 14 . 2 8 . 4 Move 2424 | 70 227 217 287 189 487 350 89 508 Hop . | . . . . . . . . . Pick Up 41 | 6 14 5 6 3 1 5 . 1 Fast Attach 25 | 6 4 5 5 . 3 2 . . Attach 18 | . 1 3 5 4 . 4 . 1 Detach 9 | . 3 2 1 2 . . . 1 Swap 8 | . . 2 3 . 2 . . 1 Drop 35 | . 7 8 5 1 1 1 . 12 Fire 133 | 9 16 24 48 . 18 12 . 6 Melee 3 | . . . . . 3 . . . Ram 1 | . . . . . 1 . . . Kick . | . . . . . . . . . Crush . | . . . . . . . . . Escape Stasis . | . . . . . . . . . Rewire 2 | . . . . . 2 . . . Trap . | . . . . . . . . . Miscellaneous . | . . . . . . . . . Route ------- -11/Scrapyard -10/Materials (discovered 2 exits: *Mat / [*Min]) -9/Materials (discovered 2 exits: *Mat / [*Min]) -8/Materials (discovered 3 exits: *Fac x3) -7/Factory -7/Lower Caves -7/Lower Caves -7/Data Miner -6/Proximity Caves History --------- Turn | Location | Event 9 | -11/Scrapyard | Discovered new exit (range 15) 142 | -11/Scrapyard | Entered Materials 325 | -10/Materials | Build established: Mutant 380 | -10/Materials | Discovered new exit (range 6) 445 | -10/Materials | Discovered new exit (range 9) 485 | -10/Materials | Entered another Materials area 485 | -9/Materials | Evolved 2 slots: Weapon x2 711 | -9/Materials | Discovered new exit (range 15) 775 | -9/Materials | Build established: Gunner 831 | -9/Materials | Discovered new exit (range 3) 877 | -9/Materials | Entered another Materials area 877 | -8/Materials | Evolved 2 slots: Utility x2 1355 | -8/Materials | Destroyed 10 combat bots 1382 | -8/Materials | Identified exit to Factory 1437 | -8/Materials | Entered Factory 1437 | -7/Factory | Evolved 2 slots: Propulsion x2 1550 | -7/Factory | Discovered new exit (range 4) 1654 | -7/Factory | Entered Lower Caves 1707 | -7/Lower Caves | Learned Factory emergency access door positions 1725 | -7/Lower Caves | Build established: Tank 1744 | -7/Lower Caves | Spotted B-75 Beast 1901 | -7/Lower Caves | Lost 3 parts (3n) 2379 | -7/Lower Caves | Discovered new exit (range 13) 2397 | -7/Lower Caves | Entered another Lower Caves area 2409 | -7/Lower Caves | Learned Factory trap positions 2611 | -7/Lower Caves | Attracted the attention of an 0b10 checkpoint 2716 | -7/Lower Caves | Spotted B-75 Beast 2807 | -7/Lower Caves | Encountered a Warlord checkpoint 2825 | -7/Lower Caves | Lost 3 parts (1p2n) 3017 | -7/Lower Caves | Discovered new exit (range 13) 3052 | -7/Lower Caves | Entered Data Miner 3052 | -7/Data Miner | Discovered new exit (range 6) 3104 | -7/Data Miner | Met Data Miner 3174 | -7/Data Miner | Learned location of Section 7 (-3) 3174 | -7/Data Miner | Acquired the access code to Warlord's prototype stash 3220 | -7/Data Miner | Received God Mode back door access code from Data Miner 3293 | -7/Data Miner | Entered Proximity Caves 3339 | -6/Proximity Caves | Learned Factory stockpile data 3690 | -6/Proximity Caves | Escorted by Enhanced Grunt 3877 | -6/Proximity Caves | Attracted the attention of an 0b10 outpost 3950 | -6/Proximity Caves | Lost 3 parts (1p2n) 3969 | -6/Proximity Caves | Core integrity fell below 50% 3976 | -6/Proximity Caves | Core integrity fell below 20% 4003 | -6/Proximity Caves | Lost 7 parts (3n4w) 4063 | -6/Proximity Caves | Attracted the attention of an 0b10 checkpoint 4064 | -6/Proximity Caves | Destroyed by Y-54 Guardian with Flak Gun Last Messages --------------- 03958_ Hpw. Shotgun destroyed. 03963_ Arm. Treads destroyed. 03966_ Minigun destroyed. 03967_ Dropped Imp. Ion Engine. 03968_ Dropped Arm. Treads. 03968_ Dropped ECM Suite. 03969_ Dropped Utility Shielding. 03969_ G-50 Soldier destroyed. 03969_ Dropped Utility Shielding. 03969_ Carbon-fiber Leg destroyed. 03970_ Dropped Utility Shielding. 03970_ Dropped Hrd. Heavy Armor Plating. 03971_ Dropped Hvy. Laser. 03971_ Dropped Hvy. Hammer. 03972_ Mining Claw destroyed. 03972_ Dropped Hvy. Hammer. 03973_ Carbon-fiber Leg fries itself beyond repair. 03973_ Acquired Imp. Ion Engine. 03974_ Dropped Lrg. Storage Unit. 04063_ Y-54 Guardian: "INTERCEPTING UNREGISTERED DERELICT." Map ----- +----------------------------------------------------+ | ?????????????????????????????????????????????????? | | ?????????????????????????????????????????????????? | | ?????????????????????????????????????????????????? | | ?????????????????????????????????????????????????? | | ?????????????????????????????????????????????????? | | ?????????????????????????????????????????????????? | | ?????????????????????????????????????????????????? | | ?????????????????????????????????????????????????? | | ?????????????????????????????????????????????????? | | ?????????????????????????????????????????????????? | | ?????????????????????? ????????????????????????? | | ???????????????????? ????????????????????????? | | ?????????????????? ????????????????????????? | | ??????????????????? Y #???????????????????????? | | ??????????????????? #???????????????????????? | | ???????????????????? ##??????????????????????? | | ???????????????????? ##?????????????????????? | | ???????????????????## ##????????????????????? | | ???????????????????# ?????????????????????? | | ???????????????????# ?????????????????????? | | ??????????????????## ??????????????????????? | | ????????????????### #??????????????????????? | | ??????????????### #??????????????????????? | | ??????????????# #?????? #?????????????? | | ??????????????# #### #?????????????? | | ??????????????# @ ##?????????????????? | | ??????????????# #???????????????? | | ??????????????# ####### #???????????????? | | ??????????????# ##???????????????????????? | | ??????????????## #### ##??????????????????????? | | ???????????????????## ##?????????????????????? | | ???????????????????# #?????????????????????? | | ???????????????????# ##????????????????????? | | ???????????????????# ### ##???????????????????? | | ???????????????????###### #?? ????????????????? | | ????????????????######## #?? ???????? ?????## | | ????????????????# ##?? ???????? ??## | | ????????????????# ##??? ##?????? #??# | | ????????????????# #########???? #?????? ##?## | | ????????????????# #???????????# #?????? #### | | ????????????????# #???????????# #?????# | | ????????????????# #???????###?# #????? ? | | ??????????????### #??????## ## #???## #?? | | ?????????????## #??????# # ???? ##? | | ???####??????# #??????# ???? ## | | ??## ###????## #??#####?# ###### | | ?## ##????## #?## #???# | | ## ##????# ### ##??# #?????? | | ###### ## #??# #?????# | | ### ####?## #????## | +----------------------------------------------------+ Best States ------------- Heat Dissipation 48 Energy Generation 14 Energy Capacity 265 Matter Stores 300 Matter Capacity 300 Sight Range 16 Robot Scan Range 10 Terrain Scan Density 10 Armor Coverage 225 Weapon Shielding 66 Evasion (%) 50 Recoil Reduction 2 Item Schematics ----------------- Combat Drone Bay | -7/Data Miner | Free Lgt. Regenerative Plating | -7/Data Miner | Free Cmb. Gravmag System | -7/Data Miner | Free Triangulator | -7/Data Miner | Free Exp. Sensor Array | -7/Data Miner | Free Tactical Coordination Suite | -7/Data Miner | Free Exp. ECM Suite | -7/Data Miner | Free Kinetic Spear | -7/Data Miner | Free Robot Schematics ------------------ S-27 Virus | -7/Data Miner | Free G-50 Soldier | -7/Data Miner | Free G-67 Veteran | -7/Data Miner | Free H-66 Slayer | -7/Data Miner | Free P-70 Sage | -7/Data Miner | Free I-36 Angel | -7/Data Miner | Free Fabricated ------------ Nothing Alien Tech Used ----------------- None Achievements -------------- The Oracle Challenges ------------ None Game ------ Seed MappingTargetingSabre Manual? 0 Play Time 00:35:34 Cumulative 447.9 hours Start 2020.09.02 @ 21:26:56 End 2020.09.02 @ 21:59:53 Sessions 1 Manual Loads 0 Difficulty Rogue Special Mode None Game No. 156 Rogue 156 Adventurer 0 Explorer 0 Win Type - Total 0 Types 0/0/0/0/0/0/0 Lore% 29 Gallery% 57 Achievement% 29 Wizard Run 0 Options --------- ASCII 0 Keyboard 1 Movement Numpad Keybinds 0 Fullscreen 2 Font 18/X11Bold Map View 76x50 Tactical HUD 1 Map Filters NONE Filters NONE Steam 1 RUN: b01f3fc5-abad-4cde-959f-90978d0cf8b2